Cogmind - Beta 15 @@@ ROGUE MODE // 2025.07.16 @ 15:56:26 Player: LumberViking Result: Destroyed by as-58927 with Assembled Heavy Rifle Performance ------------- Evolutions (0) 0 Regions Visited (2) 400 Robots Destroyed (4) 20 Value Destroyed (162) 162 Prototype IDs (0) 0 Alien Tech Used (0) 0 Bonus (0) 0 TOTAL SCORE: 582 Bonus ------- None Cogmind --------- Core Integrity 0/250 Matter 300/300 Energy 100/100 System Corruption 0% Temperature Cool (0) Movement Core (1350) Ox26 Location -10/Mines Parts ------- > --- POWER (1) -------- (None) > --- PROPULSION (2) --- (None) > --- UTILITY (2) ------ Huge Storage Unit > --- WEAPON (2) ------- (None) > --- INVENTORY (25) --- Light Ion Engine Wheel Improved Heat Sink Peak State ------------ > --- POWER ------------ Ion Engine > --- PROPULSION ------- Compact Wheel Compact Wheel > --- UTILITY ---------- Small Storage Unit Targeting Computer > --- WEAPON ----------- Small Laser Light Assault Rifle > --- INVENTORY -------- Light Ion Engine Light Ion Engine Flight Unit Flight Unit [Rating: 7] Favorites ----------- Power Ion Engine Engine Ion Engine Propulsion Compact Wheel Wheel Compact Wheel Flight Unit Flight Unit Utility Targeting Computer Storage Huge Storage Unit Processor Targeting Computer Weapon Small Laser Energy Gun Small Laser Energy Cannon Beam Cannon Ballistic Gun Light Assault Rifle Build | -11 -10 -10 ------- Run | Yrd Mat Min Slots Evolved . | . . . Power . | . . . Propulsion . | . . . Utility . | . . . Weapon . | . . . Parts Attached 12 | 6 4 2 Power 1 | 1 . . Engine 1 | 1 . . Core . | . . . Reactor . | . . . Propulsion 4 | 2 . 2 Treads . | . . . Leg . | . . . Wheel 2 | 2 . . Hover . | . . . Flight 2 | . . 2 Utility 4 | 1 3 . Device . | . . . Storage 3 | 1 2 . Processor 1 | . 1 . Hackware . | . . . Protection . | . . . Artifact . | . . . Weapon 3 | 2 1 . Energy Gun 1 | 1 . . Energy Cannon 1 | . 1 . Ballistic Gun 1 | 1 . . Ballistic Cannon . | . . . Launcher . | . . . Special Weapon . | . . . Impact Weapon . | . . . Slashing Weapon . | . . . Piercing Weapon . | . . . Special Melee Weapon . | . . . Unidentified Prototypes . | . . . Parts Lost 6 | . . 6 Power 1 | . . 1 Propulsion 2 | . . 2 Utility 1 | . . 1 Weapon 2 | . . 2 Highest Loss Streak 3 | . . 3 To Critical Strikes . | . . . Average Backups 3 | . 4 3 Power 1 | . 1 1 Propulsion 1 | . 2 1 Utility . | . . 1 Weapon . | . . . Tool/Special . | . . . Unused Backups 4 | . 1 3 Power 2 | . 1 1 Propulsion 1 | . . 1 Utility 1 | . . 1 Weapon . | . . . Tool/Special . | . . . Average Slot Usage (%) 88 | . 95 83 Engine 11 | . 14 10 Wheel 16 | . 28 9 Flight 6 | . . 10 Storage 13 | . 13 14 Processor 10 | . 10 10 Energy Gun 13 | . 14 12 Energy Cannon 9 | . 4 13 Ballistic Gun 3 | . 9 . Peak Build Rating 7 | 6 7 7 Average Rating 6 | 4 6 5 On Entrance 4 | . 6 7 Naked Turns . | . . . Heaviest Build 89 | 12 89 89 Greatest Support 32 | 32 32 32 Greatest Overweight (x) 22 | . 2 22 Average Overweight (x) 1 | . . 4 Largest Inventory Capacity 25 | 8 25 25 Average Capacity 20 | 7 14 25 Most Carried 7 | 2 7 5 Average Carried 3 | . 4 3 Final Capacity 25 | 8 25 25 Final Carried 5 | 1 5 3 Class Distribution -------------------- 100% | Mutant Dominant Class ---------------- Mutant | -10/Materials Mutant | -10/Mines Resources | -11 -10 -10 ----------- Run | Yrd Mat Min Matter Collected 325 | 114 191 20 Remotely . | . . . Salvage Created 194 | . . 194 Parts 10 | . . 10 Haulers Intercepted . | . . . Recyclers Shooed . | . . . Parts Field Recycled . | . . . Retrieved Matter . | . . . Parts Self-Destructed . | . . . Prevented . | . . . Kills | -11 -10 -10 ------- Run | Yrd Mat Min Combat Hostiles Destroyed 5 | . . 5 Guns 3 | . . 3 Cannons 2 | . . 2 Classes Destroyed 2 | . . 2 Grunt 4 | . . 4 Assembled 1 | . . 1 Best Kill Streak 2 | . . 2 Combat Bots Only 2 | . . 2 Max Kills in Single Turn 1 | . . 1 Gunslinging . | . . . Exploded . | . . . Melee . | . . . Uniques/NPCs Destroyed . | . . . Combat | -11 -10 -10 -------- Run | Yrd Mat Min Hostile Shots Fired 58 | . 3 55 Missed 9 | . 1 8 Hits 49 | . 2 47 Projectile 49 | . 2 47 Damage Taken 625 | . 16 609 Core 254 | . . 254 Absorbed by Shields . | . . . Core Remaining (%) 100 | 100 . . Volleys Fired 23 | . 7 16 Largest 2 | . 2 2 Hottest 100 | . 100 100 Shots Fired 44 | . 14 30 Gun 26 | . 12 14 Cannon 18 | . 2 16 Launcher . | . . . Special . | . . . Kinetic 5 | . 5 . Thermal 39 | . 9 30 Explosive . | . . . Electromagnetic . | . . . Robot Hit Streak 6 | . 1 6 Robot Miss Streak 5 | . 5 3 Penetration Max . | . . . Secondary Targets . | . . . Shots Hit Robots 18 | . 2 16 Core Hits 11 | . . 11 Critical Kills . | . . . Critical Parts Destroyed . | . . . Critical Strikes . | . . . Melee Attacks . | . . . Impact . | . . . Slashing . | . . . Piercing . | . . . Sneak Attacks . | . . . Combat Hostiles . | . . . Follow-up Attacks . | . . . Damage Inflicted 227 | . 12 215 Guns 123 | . 12 111 Cannons 104 | . . 104 Explosions . | . . . Melee . | . . . Ramming . | . . . Kinetic 12 | . 12 . Thermal 215 | . . 215 Explosive . | . . . Electromagnetic . | . . . Impact . | . . . Slashing . | . . . Piercing . | . . . Highest Corruption . | . . . Average Corruption . | . . . Corruption Purged . | . . . Corruption Blocked . | . . . Overload Shots . | . . . Overflow Damage . | . . . Projectiles . | . . . Explosions . | . . . Melee . | . . . Knockbacks . | . . . Impact . | . . . Kinetic . | . . . Secondary . | . . . Self-Inflicted Damage . | . . . Shots . | . . . Rammed . | . . . Targets Rammed . | . . . Kicked . | . . . Crushed . | . . . Highest Temperature 266 | . 78 266 Average Temperature 78 | . 28 90 Received Heat Transfer 144 | . . 144 Siege Activations . | . . . Martial Activations . | . . . Shielding Activations . | . . . Robots Disrupted . | . . . Combat Hostiles . | . . . Robots Corrupted . | . . . Combat Hostiles . | . . . Parts Fried . | . . . Impact Corruptions . | . . . Robots Melted . | . . . Combat Hostiles . | . . . Parts Melted . | . . . Heat Transferred 472 | . . 472 Parts Sabotaged . | . . . Parts Stolen . | . . . Parts Stripped . | . . . Power Chain Reactions . | . . . Alert | -11 -10 -10 ------- Run | Yrd Mat Min Maximum Alert Level . | . . . Low Security (%) 100 | 100 100 100 Level 1 . | . . . Level 2 . | . . . Level 3 . | . . . Level 4 . | . . . Level 5 . | . . . High Security . | . . . Max Security . | . . . Peak Influence 50 | . . 50 Initial . | . . . Average 5 | . . 9 Influence Increases 100 | . . 100 Destroy 0b10 Robot/C 80 | . . 80 Destroy Leader 20 | . . 20 Influence Decreases 100 | . . 100 Time Decay 90 | . . 90 Lost Part 10 | . . 10 Squads Dispatched 1 | . 1 . Investigation . | . . . Extermination . | . . . Reinforcement 1 | . 1 . Assault . | . . . Garrison . | . . . Intercept . | . . . Searches Triggered . | . . . Construction Impeded . | . . . Haulers Reinforced . | . . . Active Scanning Responses . | . . . Cargo Convoy Interrupts . | . . . Stealth | -11 -10 -10 --------- Run | Yrd Mat Min Distress Signals 3 | . 2 1 Communications Jammed . | . . . Distress Signals . | . . . Times Spotted 10 | . 4 6 Peak Tracking Total 2 | . 2 2 Tactical Retreats 1 | . . 1 Traps | -11 -10 -10 ------- Run | Yrd Mat Min Traps Triggered . | . . . Indirectly . | . . . Trap Hack Attempts . | . . . Triggered . | . . . Disarmed . | . . . Reprogrammed . | . . . Reused . | . . . Traps Extracted . | . . . Installed . | . . . Triggered . | . . . Machines | -11 -10 -10 ---------- Run | Yrd Mat Min Machines Disabled . | . . . Max in Single Turn . | . . . Machines Repaired . | . . . Machines Dismantled . | . . . Machines Sabotaged . | . . . Overloaded Fab Kills . | . . . Hacking | -11 -10 -10 --------- Run | Yrd Mat Min Machines Accessed . | . . . Terminals . | . . . Fabricators . | . . . Repair Stations . | . . . Recycling Units . | . . . Scanalyzers . | . . . Garrison Access . | . . . Total Hacks . | . . . Successful . | . . . Failed . | . . . Catastrophic . | . . . Database Lockouts . | . . . Manual . | . . . Terminals . | . . . Fabricators . | . . . Repair Stations . | . . . Recycling Units . | . . . Scanalyzers . | . . . Garrison Access . | . . . Terminal Hacks . | . . . Fabricator Hacks . | . . . Repair Station Hacks . | . . . Recycling Unit Hacks . | . . . Scanalyzer . | . . . Garrison Access Hacks . | . . . Unauthorized Hacks . | . . . Terminals . | . . . Fabricators . | . . . Repair Stations . | . . . Recycling Units . | . . . Scanalyzers . | . . . Garrison Access . | . . . Data Cores Recovered . | . . . Used . | . . . Hacking Detections . | . . . Full Trace Events . | . . . Feedback Events . | . . . Feedback Blocked . | . . . Robot Schematics Acquired . | . . . Robots Built . | . . . Authchips . | . . . Time . | . . . Total Robot Build Rating . | . . . Part Schematics Acquired . | . . . Parts Built . | . . . Authchips . | . . . Time . | . . . Total Part Build Rating . | . . . Parts Repaired . | . . . Time . | . . . Parts Recycled . | . . . Recycled Matter . | . . . Retrieved Matter . | . . . Retrieved Components . | . . . Parts Scanalyzed . | . . . Part Schematics Acquired . | . . . Parts Damaged . | . . . Bothacking | -11 -10 -10 ------------ Run | Yrd Mat Min Used RIF Installer . | . . . Robots Hacked . | . . . Non-combat . | . . . Combat . | . . . Robot Hacks Applied . | . . . Relay Couplers Released . | . . . Fabnet Peak Effective % . | . . . Robots Rewired . | . . . Allies Hacked . | . . . Hacks Repelled . | . . . Allies | -11 -10 -10 -------- Run | Yrd Mat Min Total Allies . | . . . Largest Group . | . . . Highest-Rated Group . | . . . Highest-Rated Ally . | . . . Total Orders . | . . . Ally Attacks . | . . . Total Damage . | . . . Kills . | . . . Allies Corrupted . | . . . Allies Melted . | . . . Intel | -11 -10 -10 ------- Run | Yrd Mat Min Active Infowar (turns) . | . . . Robot Analysis Total . | . . . Derelict Logs Recovered . | . . . Drone Launches . | . . . Drone Recoveries . | . . . Exploration | -11 -10 -10 ------------- Run | Yrd Mat Min Turns Passed 839 | 42 301 496 Spaces Moved 387 | 30 228 129 Core 2 | 2 . . Treads . | . . . Legs . | . . . Wheels 364 | 28 228 108 Hover . | . . . Flight 21 | . . 21 Fastest Speed 50 | 50 100 130 Average Speed 187 | 96 106 352 Slowest Speed 1800 | 100 130 1800 Overloaded Moves . | . . . Propulsion Burnouts . | . . . Robots Hopped . | . . . Potential Cave-ins . | . . . Cave-ins Triggered . | . . . Exploration Rate (%) 29 | 4 45 39 Regions Visited 2 Branch Regions 1 Pre-discovered Areas . | . . . Known Exits Taken . | . . . Unknown Exits Taken 2 | 1 1 . Scrap Searched . | . . . Spaces Dug . | . . . Terrain Destroyed . | . . . Melee . | . . . Projectile . | . . . AOE . | . . . Terrain Rammed . | . . . Walls Destroyed . | . . . Machines Disabled . | . . . Actions | -11 -10 -10 --------- Run | Yrd Mat Min Total 468 | 42 273 153 Wait 25 | . 21 4 Move 385 | 29 227 129 Hop . | . . . Pick Up 18 | 7 11 . Fast Attach . | . . . Attach 11 | 6 3 2 Detach . | . . . Swap 1 | . 1 . Drop 5 | . 3 2 Fire 23 | . 7 16 Melee . | . . . Ram . | . . . Kick . | . . . Crush . | . . . Escape Stasis . | . . . Rewire . | . . . Trap . | . . . Miscellaneous . | . . . Route ------- -11/Scrapyard -10/Materials -10/Mines History --------- Turn | Location | Event 32 | -11/Scrapyard | Discovered new exit (range 12) 43 | -11/Scrapyard | Entered Materials 44 | -10/Materials | Met a group of wandering Federalists 202 | -10/Materials | Discovered new exit (range 8) 310 | -10/Materials | Build established: Mutant 344 | -10/Materials | Entered Mines 721 | -10/Mines | Excavation squad dispatched 721 | -10/Mines | A large section of the Mines collapsed 733 | -10/Mines | Core integrity fell below 50% 826 | -10/Mines | Core integrity fell below 20% 840 | -10/Mines | Destroyed by as-58927 with Assembled Heavy Rifle Last Messages --------------- 00570_ K-01 Serf collects debris. 00576_ Flight Unit destroyed. 00577_ G-34 Mercenary destroyed. 00580_ K-01 Serf collects debris. 00606_ R-06 Scavenger collects Aluminum Leg. 00608_ K-01 Serf collects debris. 00609_ R-06 Scavenger collects Sml. Laser. 00612_ R-06 Scavenger collects Aluminum Leg. 00612_ K-01 Serf collects debris. 00721_ ALERT: Suspicious cave-in, suspected derelict activity in mines. Dispatching escorted excavation squad. 00728_ Ion Engine destroyed. 00734_ Targeting Computer destroyed. 00743_ T-07 Excavator is excavating. 00748_ as-52621 destroyed. 00797_ T-07 Excavator destroyed. 00809_ Sml. Laser destroyed. 00820_ Beam Cannon destroyed. 00838_ Flight Unit destroyed. Map ----- +----------------------------------------------------+ | ????????????????????????????## #???????# | | ????????????????????????????# #???????## ### | | ????????????????????????????# ##???????### #?? | | ?????????????????????????????# #????###### #?? | | ?????????????????????????????## ##???# #?? | | ??????????????????????????###### ###?# ######?? | | ??????????????????????????# ### #??????? | | ????????????????????####??# ##### #??????? | | ???????????????????## ##?# #???### #####??????? | | ??????????????????## #?# #?????####??????????? | | ?????????????????## %### #???????????????????? | | ???????????????### * %! #???????????????????? | | ???????????# [% #####???????????????????? | | ??????????# # *#######?????????????????? | | ???????? #### ?#% $ ??????????? | | ????????? ???????##?## #######?????????????????? | | ???????????????????##* =#???????????????????????? | | ???????????????????#%! !##??????????????????????? | | ???????????????????#!= ##?????????????????????? | | ???????????????????# ##????????????????????? | | ??????????????????#### % ##???????????????????? | | ???????????????? ## ##??????????????????? | | ?????????????# ## ##?????????????????? | | ?????????????# # a #?????????????????? | | ????????????# ## #?????????????????? | | ???????????# #@ #?????????????????? | | ?????????? # #?????????????????? | | ?????????? ## #?????????????????? | | ??????????##??# # ## #?????????????????? | | ??????????????# ##?# ##?????????????????? | | ?????????????? #???##??????????????????? | | ????????????? #???????????????????????? | | ???????????????## ????????????????????????? | | ??????????????????### #????????????????????????? | | ????????????????????###?????????????????????????? | | ????????????????????????????????????????????????? | | | | | | | | | | | | | | | | | | | | | | | | | | | | | +----------------------------------------------------+ Best States ------------- Heat Dissipation 25 Energy Generation 10 Energy Capacity 250 Matter Stores 300 Matter Capacity 300 Sight Range 16 Terrain Scan Density 10 Evasion (%) 40 Targeting Accuracy 5 Item Schematics ----------------- None Robot Schematics ------------------ None Fabricated ------------ Nothing Repaired ---------- Nothing Alien Tech Used ----------------- None Achievements -------------- None Challenges ------------ None Game ------ Seed ChromionMachineBox Manual? 0 Play Time 00:08:16 Cumulative 5.0 hours Start 2025.07.16 @ 15:49:56 End 2025.07.16 @ 15:56:26 Sessions 1 Manual Loads 0 Difficulty Rogue Special Mode None Game No. 12 Rogue 12 Adventurer 0 Explorer 0 Win Type - Total 0 Types 0/0/0/0/0/0/0/0/0/0 Lore% 5 Gallery% 10 Achievement% 9 Wizard Run 0 Options --------- Layout 1 ASCII 0 Keyboard 0 Movement Numpad Keybinds 0 Fullscreen 1 Font 32/SmallcapsGlow Map View 50x35 Zoom Use 0% Tactical HUD 1 Map Filters NONE Filters NONE Steam 1 RUN: 0f3c9583-5003-4c7a-9fea-b0f6fc4083e4